Cogmind - Beta 10.2 @@@ ROGUE MODE // 2021.01.20 @ 11:06:11 Player: Luigi Panache Result: Destroyed by as-91572 with Assembled Maul Performance ------------- Evolutions (0) 0 Regions Visited (4) 800 Robots Destroyed (4) 20 Value Destroyed (21) 21 Prototype IDs (1) 20 Alien Tech Used (0) 0 Bonus (-1235) -1235 TOTAL SCORE: -374 Bonus ------- Friendly Fire -1235 Cogmind --------- Core Integrity 0/250 Matter 300/300 Energy 100/100 System Corruption 10% Temperature Cool (0) Movement Core (150) Ox2 Location -9/Mines Parts ------- > --- POWER (1) -------- (None) > --- PROPULSION (2) --- (None) > --- UTILITY (2) ------ Medium Storage Unit > --- WEAPON (2) ------- (None) > --- INVENTORY (8) ---- Ion Engine Compact Wheel Makeshift Sensor Array Transport Network Coupler Light Assault Rifle Light Assault Rifle Peak State ------------ > --- POWER ------------ Makeshift Power Source > --- PROPULSION ------- Light Treads Light Treads > --- UTILITY ---------- Makeshift Hacking Suite Trap Reconfigurator > --- WEAPON ----------- Assault Rifle Light Assault Rifle > --- INVENTORY -------- Ion Engine Compact Wheel Makeshift Sensor Array Grenade Launcher [Rating: 21] Favorites ----------- Power Light Ion Engine Engine Light Ion Engine Propulsion Light Treads Treads Light Treads Leg Aluminum Leg Utility Small Storage Unit Device Advanced Heat Sink Storage Small Storage Unit Hackware Makeshift Hacking Suite Weapon Assault Rifle Ballistic Gun Assault Rifle Launcher Grenade Launcher Build | -11 -10 -10 -10 -9 ------- Run | Scr Mat Min Exi Min Slots Evolved . | . . . . . Power . | . . . . . Propulsion . | . . . . . Utility . | . . . . . Weapon . | . . . . . Parts Attached 11 | 2 . 1 5 3 Power 1 | . . . 1 . Engine 1 | . . . 1 . Core . | . . . . . Reactor . | . . . . . Propulsion 2 | 2 . . . . Treads 2 | 2 . . . . Leg . | . . . . . Wheel . | . . . . . Hover . | . . . . . Flight . | . . . . . Utility 6 | . . 1 4 1 Device 3 | . . 1 2 . Storage 2 | . . . 1 1 Processor . | . . . . . Hackware 1 | . . . 1 . Protection . | . . . . . Artifact . | . . . . . Weapon 2 | . . . . 2 Energy Gun . | . . . . . Energy Cannon . | . . . . . Ballistic Gun . | . . . . . Ballistic Cannon . | . . . . . Launcher 2 | . . . . 2 Special Weapon . | . . . . . Impact Weapon . | . . . . . Slashing Weapon . | . . . . . Piercing Weapon . | . . . . . Special Melee Weapon . | . . . . . Unidentified Prototypes 1 | . . . 1 . Parts Lost 6 | . . . . 6 Power 1 | . . . . 1 Propulsion 1 | . . . . 1 Utility 2 | . . . . 2 Weapon 2 | . . . . 2 Highest Loss Streak 5 | . . . . 5 Average Slot Usage (%) 94 | . 85 95 99 72 Engine 13 | . 14 14 14 9 Treads 26 | . 28 28 28 17 Device 5 | . . 9 5 . Storage 14 | . 14 14 13 16 Hackware 5 | . . . 8 8 Ballistic Gun 26 | . 28 28 28 17 Naked Turns . | . . . . . Heaviest Build 12 | 10 10 11 11 12 Greatest Support 40 | 40 40 40 40 40 Greatest Overweight (x) 3 | . . . . 3 Average Overweight (x) . | . . . . . Largest Inventory Capacity 10 | 6 6 6 6 10 Average Capacity 6 | 6 6 6 5 6 Most Carried 6 | 6 6 6 6 6 Average Carried 5 | 6 6 6 5 6 Final Capacity 8 | 6 6 6 6 8 Final Carried 6 | 6 6 6 6 6 Class Distribution -------------------- 95% | Mutant 4% | Commander-Mutant Dominant Class ---------------- Mutant | -10/Mines Mutant | -10/Exiles Mutant | -9/Mines Resources | -11 -10 -10 -10 -9 ----------- Run | Scr Mat Min Exi Min Matter Collected 404 | 216 . 88 . 100 Remotely . | . . . . . Salvage Created 199 | . . 163 . 36 Parts 6 | . . 6 . . Haulers Intercepted . | . . . . . Recyclers Shooed . | . . . . . Parts Field Recycled . | . . . . . Retrieved Matter . | . . . . . Parts Self-Destructed . | . . . . . Prevented . | . . . . . Kills | -11 -10 -10 -10 -9 ------- Run | Scr Mat Min Exi Min Combat Hostiles Destroyed 13 | . . 2 . 11 Guns 3 | . . 2 . 1 AOE 10 | . . . . 10 Classes Destroyed 3 | . . 2 . 1 Worker 1 | . . 1 . . Swarmer 2 | . . 2 . . Assembled 11 | . . . . 11 Best Kill Streak 11 | . . 3 . 11 Combat Bots Only 11 | . . 2 . 11 Max Kills in Single Turn 5 | . . 1 . 5 Gunslinging . | . . . . . Exploded 5 | . . . . 5 Melee . | . . . . . Uniques/NPCs Destroyed 1 | . . 1 . . YI-UF0 (-10/Mines) Combat | -11 -10 -10 -10 -9 -------- Run | Scr Mat Min Exi Min Damage Taken 973 | . . 43 . 930 Core 274 | . . 9 . 265 Absorbed by Shields . | . . . . . Core Remaining (%) 100 | 100 . . . . Volleys Fired 27 | . . 19 . 8 Largest 2 | . . 2 . 2 Hottest 40 | . . 40 . 40 Shots Fired 50 | . . 38 . 12 Gun 46 | . . 38 . 8 Cannon . | . . . . . Launcher 4 | . . . . 4 Special . | . . . . . Kinetic 46 | . . 38 . 8 Thermal . | . . . . . Explosive 4 | . . . . 4 Electromagnetic . | . . . . . Robot Hit Streak 15 | . . 15 . 4 Robot Miss Streak 3 | . . 3 . 2 Penetration Max . | . . . . . Secondary Targets . | . . . . . Shots Hit Robots 38 | . . 31 . 7 Core Hits 45 | . . 10 . 35 Critical Hits 1 | . . 1 . . Critical Kills . | . . . . . Critical Parts Destroyed . | . . . . . Melee Attacks . | . . . . . Impact . | . . . . . Slashing . | . . . . . Piercing . | . . . . . Sneak Attacks . | . . . . . Combat Hostiles . | . . . . . Follow-up Attacks . | . . . . . Damage Inflicted 993 | . . 304 . 689 Guns 343 | . . 304 . 39 Cannons . | . . . . . Explosions 644 | . . . . 644 Melee . | . . . . . Ramming 6 | . . . . 6 Kinetic 343 | . . 304 . 39 Thermal . | . . . . . Explosive 644 | . . . . 644 Electromagnetic . | . . . . . Impact . | . . . . . Slashing . | . . . . . Piercing . | . . . . . Highest Corruption 10 | . . . . 10 Average Corruption 8 | . . . . 8 Corruption Purged . | . . . . . Effects 1 | . . . . 1 Heat Flow Errors 1 | . . . . 1 Overload Shots . | . . . . . Overflow Damage 7 | . . . . 7 Projectiles . | . . . . . Explosions 7 | . . . . 7 Melee . | . . . . . Knockbacks . | . . . . . Impact . | . . . . . Kinetic . | . . . . . Secondary . | . . . . . Self-Inflicted Damage 111 | . . . . 111 Shots 4 | . . . . 4 Rammed 8 | . . 1 . 7 Targets Rammed 8 | . . 1 . 7 Kicked . | . . . . . Crushed . | . . . . . Highest Temperature 202 | . . . . 202 Average Temperature 46 | . . . . 46 Received Heat Transfer 40 | . . . . 40 Siege Activations . | . . . . . Robots Corrupted . | . . . . . Combat Hostiles . | . . . . . Parts Fried . | . . . . . Impact Corruptions . | . . . . . Robots Melted . | . . . . . Combat Hostiles . | . . . . . Parts Melted . | . . . . . Heat Transferred . | . . . . . Parts Sabotaged . | . . . . . Parts Stolen . | . . . . . Parts Stripped . | . . . . . Power Chain Reactions . | . . . . . Missiles Intercepted . | . . . . . Alert | -11 -10 -10 -10 -9 ------- Run | Scr Mat Min Exi Min Peak Influence 60 | . . 60 . 15 Initial . | . . . . . Average 16 | . . 23 . . Maximum Alert Level . | . . . . . Low Security (%) 100 | 100 100 100 . 100 Level 1 . | . . . . . Level 2 . | . . . . . Level 3 . | . . . . . Level 4 . | . . . . . Level 5 . | . . . . . High Security . | . . . . . Max Security . | . . . . . Squads Dispatched . | . . . . . Investigation . | . . . . . Extermination . | . . . . . Reinforcement . | . . . . . Assault . | . . . . . Garrison . | . . . . . Intercept . | . . . . . Construction Impeded . | . . . . . Haulers Reinforced . | . . . . . Stealth | -11 -10 -10 -10 -9 --------- Run | Scr Mat Min Exi Min Distress Signals . | . . . . . Communications Jammed . | . . . . . Distress Signals . | . . . . . Times Spotted 20 | . . 3 . 17 Peak Tracking Total 18 | . . 2 . 18 Tactical Retreats 1 | . . . . 1 Traps | -11 -10 -10 -10 -9 ------- Run | Scr Mat Min Exi Min Traps Triggered . | . . . . . Indirectly . | . . . . . Trap Hack Attempts . | . . . . . Triggered . | . . . . . Disarmed . | . . . . . Reprogrammed . | . . . . . Reused . | . . . . . Traps Extracted . | . . . . . Installed . | . . . . . Triggered . | . . . . . Machines | -11 -10 -10 -10 -9 ---------- Run | Scr Mat Min Exi Min Machines Disabled . | . . . . . Max in Single Turn . | . . . . . Machines Sabotaged . | . . . . . Garrisons Compromised . | . . . . . Overloaded Fab Kills . | . . . . . Fab Network Shutdowns . | . . . . . Hacking | -11 -10 -10 -10 -9 --------- Run | Scr Mat Min Exi Min Machines Accessed 1 | . . . 1 . Terminals . | . . . . . Fabricators . | . . . . . Repair Stations . | . . . . . Recycling Units . | . . . . . Scanalyzers . | . . . . . Garrison Access . | . . . . . Total Hacks 1 | . . . 1 . Successful 1 | . . . 1 . Failed . | . . . . . Catastrophic . | . . . . . Database Lockouts . | . . . . . Manual 1 | . . . 1 . Terminals . | . . . . . Fabricators . | . . . . . Repair Stations . | . . . . . Recycling Units . | . . . . . Scanalyzers . | . . . . . Garrison Access . | . . . . . Terminal Hacks 1 | . . . 1 . Record 1 | . . . 1 . Fabricator Hacks . | . . . . . Repair Station Hacks . | . . . . . Recycling Unit Hacks . | . . . . . Scanalyzer . | . . . . . Garrison Access Hacks . | . . . . . Unauthorized Hacks . | . . . . . Terminals . | . . . . . Fabricators . | . . . . . Repair Stations . | . . . . . Recycling Units . | . . . . . Scanalyzers . | . . . . . Garrison Access . | . . . . . Data Cores Recovered . | . . . . . Used . | . . . . . Hacking Detections . | . . . . . Full Trace Events . | . . . . . Feedback Events . | . . . . . Feedback Blocked . | . . . . . Robot Schematics Acquired . | . . . . . Robots Built . | . . . . . Matter . | . . . . . Time . | . . . . . Total Robot Build Rating . | . . . . . Part Schematics Acquired . | . . . . . Parts Built . | . . . . . Matter . | . . . . . Time . | . . . . . Total Part Build Rating . | . . . . . Parts Repaired . | . . . . . Time . | . . . . . Parts Recycled . | . . . . . Recycled Matter . | . . . . . Retrieved Matter . | . . . . . Retrieved Components . | . . . . . Parts Scanalyzed . | . . . . . Part Schematics Acquired . | . . . . . Parts Damaged . | . . . . . Bothacking | -11 -10 -10 -10 -9 ------------ Run | Scr Mat Min Exi Min Used RIF Installer . | . . . . . Robots Hacked . | . . . . . Non-combat . | . . . . . Combat . | . . . . . Robot Hacks Applied . | . . . . . Relay Couplers Released . | . . . . . Robots Rewired 2 | . . . 2 . Allies Hacked . | . . . . . Hacks Repelled . | . . . . . Allies | -11 -10 -10 -10 -9 -------- Run | Scr Mat Min Exi Min Total Allies 5 | . . . 2 3 Largest Group 5 | . . . 2 5 Highest-Rated Group 69 | . . . 29 69 Highest-Rated Ally 21 | . . . 21 21 Total Orders . | . . . . . Ally Attacks 15 | . . . . 15 Total Damage 252 | . . . . 252 Kills 6 | . . . . 6 Allies Corrupted . | . . . . . Allies Melted . | . . . . . Intel | -11 -10 -10 -10 -9 ------- Run | Scr Mat Min Exi Min Robot Analysis Total . | . . . . . Derelict Logs Recovered 2 | . . 1 . 1 Drone Launches . | . . . . . Drone Recoveries . | . . . . . Exploration | -11 -10 -10 -10 -9 ------------- Run | Scr Mat Min Exi Min Turns Passed 1210 | 5 15 404 630 156 Spaces Moved 673 | 2 10 216 378 67 Core 17 | . . . . 17 Treads 655 | 1 10 216 378 50 Legs 1 | 1 . . . . Wheels . | . . . . . Hover . | . . . . . Flight . | . . . . . Fastest Speed 100 | 120 160 160 160 100 Average Speed 159 | 140 160 160 160 152 Slowest Speed 200 | 160 160 160 160 200 Overloaded Moves . | . . . . . Propulsion Burnouts . | . . . . . Robots Hopped . | . . . . . Cave-ins Triggered . | . . . . . Exploration Rate (%) 32 | 2 6 51 80 24 Regions Visited 4 Branch Regions 3 Pre-discovered Areas 1 | . . . 1 . Known Exits Taken . | . . . . . Unknown Exits Taken 4 | 1 1 1 1 . Scrap Searched 1 | . . 1 . . Spaces Dug . | . . . . . Terrain Destroyed 22 | . . . . 22 Melee . | . . . . . Projectile . | . . . . . AOE 22 | . . . . 22 Terrain Rammed . | . . . . . Walls Destroyed . | . . . . . Machines Disabled . | . . . . . Actions | -11 -10 -10 -10 -9 --------- Run | Scr Mat Min Exi Min Total 758 | 3 9 240 405 101 Wait 18 | . . 2 . 16 Move 669 | 1 9 215 377 67 Hop . | . . . . . Pick Up 5 | . . 1 4 . Fast Attach 7 | . . 1 4 2 Attach . | . . . . . Detach . | . . . . . Swap 4 | 2 . . 1 1 Drop 8 | . . 1 7 . Fire 27 | . . 19 . 8 Melee . | . . . . . Ram 7 | . . . . 7 Kick . | . . . . . Crush 1 | . . 1 . . Escape Stasis . | . . . . . Rewire 12 | . . . 12 . Trap . | . . . . . Miscellaneous . | . . . . . Route ------- -11/Scrapyard -10/Materials -10/Mines (discovered 3 exits: *Mat x2 / *Exi) -10/Exiles -9/Mines History --------- Turn | Location | Event 1 | -11/Scrapyard | Discovered new exit (range 1) 6 | -11/Scrapyard | Entered Materials 6 | -10/Materials | Discovered new exit (range 8) 21 | -10/Materials | Entered Mines 50 | -10/Mines | Discovered new exit (range 8) 53 | -10/Mines | Identified exit to Materials 81 | -10/Mines | YI-UF0 nonchalantly dropped a Grenade Launcher on the ground 134 | -10/Mines | Destroyed YI-UF0 315 | -10/Mines | Build established: Mutant 417 | -10/Mines | Deemed a non-threat by the Exiles lab entrance 419 | -10/Mines | Discovered new exit (range 5) 425 | -10/Mines | Entered Exiles 425 | -10/Exiles | Found Exiles lab destroyed 776 | -10/Exiles | Learned location of Zion (-7) 855 | -10/Exiles | Opened EX-Vault 862 | -10/Exiles | Found Prototype Device 862 | -10/Exiles | Identified Trap Reconfigurator 1042 | -10/Exiles | Discovered new exit (range 10) 1055 | -10/Exiles | Entered Mines 1055 | -9/Mines | Accompanied by 2 allies 1075 | -9/Mines | Assisted by bots powering up and referring to "LRC-V3" 1120 | -9/Mines | Assembled infested the area 1165 | -9/Mines | Core integrity fell below 50% 1172 | -9/Mines | Destroyed 11 combat bots 1197 | -9/Mines | Lost 5 parts (1p1n1u2w) 1197 | -9/Mines | Core integrity fell below 20% 1209 | -9/Mines | System corruption reached 10% 1211 | -9/Mines | Destroyed by as-91572 with Assembled Maul Last Messages --------------- 01155_ Grenade Launcher destroyed. 01157_ Lgt. Treads destroyed. 01159_ as-34634 destroyed. 01161_ Assault Rifle destroyed. 01161_ System corrupted by crushing effect (+2). 01166_ Mak. Power Source destroyed. 01166_ System corrupted by crushing effect (+2). 01166_ Knocked back. 01170_ Extracted 100 matter. 01174_ Acquired derelict log, extracted data. Data stored: Storage entrances (x1). 01176_ Acquired Med. Storage Unit. 01180_ Knocked back. 01188_ System corrupted: Heat flow error (+227). 01194_ Slammed into as-91572. 01196_ Knocked back. 01200_ Slammed into as-91572. 01208_ Sml. Storage Unit destroyed. 01208_ System corrupted by crushing effect (+1). 01210_ Slammed into as-91572. Map ----- +----------------------------------------------------+ | | | | | | | | | | | | | | | ?????????????????????????????????????????????????? | | ?????????????????????????????????????????????????? | | ?????????????????????????????????????????????????? | | ?????????????????????????????????????????????????? | | ?????????????????????????????????????????????????? | | ?????????????????????????????????????????????????? | | ?????????????????????????????????????????????????? | | ?????????????????????????????????????????????????? | | #######??????????????????????????????????????????? | | # # ??????????????????????????????????????????? | | # # #??????????????????????????????????????????? | | # #??????????????????????????????????????????? | | # ####???????????????????????????????????????? | | #???????????????????????????????????????? | | #???????????????????????????????????????? | | # ### #?????????########??????????????????????? | | #####?# #?????????# ##?????????????????????? | | #?????# #####?????# %%% #?????????????????????? | | #?????# #?????# !! @ #?????????????????????? | | #?????# #?????# ! a#?????????????????????? | | #?????###### #?????# !! #?????????????????????? | | #??????????# #?????# #?????????????????????? | | #??????????# ##????# #?????????? ????????? | | ??????????## ###??##### a##????????? *???????? | | ??????????# ##?????# ########## %???????? | | ??????????# ##????# = ??????? | | ??????????## ##???# % % =% ??????? | | ???????????# ##### % * ??????? | | ??????????## =%% #???????? | | ??????????# %*[! %## #???????? | | ??????????# ===* % #??? #???????? | | ??????????## *%[%=a=# #?????"??????????? | | ???????????## % !# #####????????????????? | | ????????????# ! ## # #????????????????????? | | ???????????# #### ###????????????????????? | | ????????? ##??####???????????????????????? | | ???????# #??????????????????????????????? | | ???????# ##??????????????????????????????? | | ???????## ##???????????????????????????????? | | ????????## ##????????????????????????????????? | | ?????????## #??????????????????????????????????? | | ??????????####???????????????????????????????????? | | ?????????????????????????????????????????????????? | +----------------------------------------------------+ Best States ------------- Heat Dissipation 44 Energy Generation 15 Energy Capacity 170 Matter Stores 300 Matter Capacity 300 Sight Range 16 Terrain Scan Density 10 Evasion (%) 40 Recoil Reduction 2 Offensive Hacking 11 Item Schematics ----------------- None Robot Schematics ------------------ None Fabricated ------------ Nothing Alien Tech Used ----------------- None Achievements -------------- Collateral Damage Challenges ------------ None Game ------ Seed MappingBladeBoregun Manual? 0 Play Time 00:07:25 Cumulative 245.5 hours Start 2021.01.20 @ 11:00:06 End 2021.01.20 @ 11:06:11 Sessions 1 Manual Loads 0 Difficulty Rogue Special Mode None Game No. 234 Rogue 102 Adventurer 65 Explorer 67 Win Type - Total 14 Types 11/0/2/1/0/0/0/0/0 Lore% 73 Gallery% 82 Achievement% 64 Wizard Run 0 Options --------- ASCII 0 Keyboard 0 Movement Numpad Keybinds 0 Fullscreen 2 Font 18/TerminusBold Map View 76x50 Tactical HUD 1 Map Filters NONE Filters NONE Steam 1 RUN: 5b269ccc-ef5a-4663-926b-8ef43f92867e